[Event "FIDE Chesscom Online Nations Cup"]
[White "Zatonskih, Anna"]
[Black "Koneru, Humpy"]
[Site "Online"]
[Round "1"]
[Annotator "RC"]
[Result "0-1"]
[Date "2020.05.05"]
[WhiteElo "2327"]
[BlackElo "2483"]
[PlyCount "84"]
[TimeControl "1500+10"]

1. e4 {[%emt 0:0:7]} e5 {[%emt 0:0:4]} 2. Nf3 {[%emt 0:0:5]} Nc6 {[%emt 0:0:2]
} 3. Nc3 {[%emt 0:0:4]} Nf6 {[%emt 0:0:4]} 4. d4 {[%emt 0:0:0]} exd4 {[%emt 0:0:7]} 5. Nxd4 {[%emt 0:0:3]} Bb4 {[%emt 0:0:6]} 6. Nxc6 {[%emt 0:0:6]} bxc6 {[%emt 0:0:2]} 7. Bd3 {[%emt 0:0:3]} 0-0 {[%emt 0:0:11]
} 8. 0-0 {[%emt 0:0:5]} d5 {[%emt 0:0:6]} 9. Bd2 {[%emt 0:0:0]} Rb8 {[%emt 0:1:15]} 10. Re1 {[%emt 0:0:16]} Re8 {[%emt 0:0:49]} 11. a3 {[%emt 0:1:5]} Bd6 {[%emt 0:2:13]} 12. Bg5 {[%emt 0:3:48]} d4 {[%emt 0:0:0]} 13. Na4 {[%emt 0:2:7]} h6 {[%emt 0:0:9]} 14. Bh4 {[%emt 0:0:7]} c5 {[%emt 0:0:10]
} 15. b3 {[%emt 0:3:49]} Bb7 {[%emt 0:3:21]} 16. Qf3 {[%emt 0:0:0]} g5 {[%emt 0:1:53]} 17. Bg3 {[%emt 0:0:9]} c4 {[%emt 0:2:54]} 18. Bxc4 {[%emt 0:1:42]} Bxe4 {[%emt 0:0:23]} 19. Qd1 {[%emt 0:0:56]} Bxg3 {[%emt 0:0:25]
} 20. hxg3 {[%emt 0:0:6]} Qd6 {[%emt 0:0:5]} 21. Qd2 {[%emt 0:2:41]
} Kg7 {[%emt 0:1:28]} 22. Nb2 {[%emt 0:2:18]} Ba8 {[%emt 0:0:0]} 23. Bd3 {[%emt 0:3:42]} Rxe1+ {[%emt 0:1:27]} 24. Qxe1 {[%emt 0:0:53]} Re8 {[%emt 0:0:22]} 25. Qd2 {[%emt 0:0:14]} Qd5 {[%emt 0:0:33]} 26. f3 {[%emt 0:0:40]
} g4 {[%emt 0:1:12]} 27. Rf1 {[%emt 0:1:19]} gxf3 {[%emt 0:0:0]} 28. Rxf3 {[%emt 0:0:16]} Qh5 {[%emt 0:0:10]} 29. Rf5 {[%emt 0:0:27]} Qg4 {[%emt 0:0:56]} 30. Qf2 {[%emt 0:0:8]} Re6 {[%emt 0:0:31]} 31. Rf4 {[%emt 0:0:39]
} Qg5 {[%emt 0:0:29]} 32. Nc4 {[%emt 0:0:14]} Kg8 {[%emt 0:0:0]} 33. Bf5 {[%emt 0:0:48]} Re7 {[%emt 0:0:28]} 34. Rxd4 {[%emt 0:0:8]} Qc1+ {[%emt 0:0:16]} 35. Kh2 {[%emt 0:0:3]} Re1 {[%emt 0:0:15]} 36. g4 {[%emt 0:0:4]
} Rh1+ {[%emt 0:0:26]} 37. Kg3 {[%emt 0:0:3]} Kg7 {[%emt 0:0:0]} 38. Ne3 {[%emt 0:0:27]} Re1 {[%emt 0:0:10]} 39. Rd3 {[%emt 0:0:15]} Be4 {[%emt 0:0:13]} 40. Rc3 {[%emt 0:0:8]} Qa1 {[%emt 0:0:1]} 41. Rxc7 {[%emt 0:0:12]
} Qe5+ {[%emt 0:0:4]} 42. Qf4 {[%emt 0:0:20]} Rxe3+ {[%emt 0:0:0]} 0-1